Cogmind - Beta 10.2 @@@ ROGUE MODE // 2020.12.18 @ 21:25:52 Player: CrossedViper Result: Destroyed by G-50 Soldier with Heavy Laser Performance ------------- Evolutions (3) 1500 Regions Visited (15) 3000 Robots Destroyed (97) 485 Value Destroyed (2966) 2966 Prototype IDs (50) 1000 Alien Tech Used (0) 0 Bonus (1896) 1896 TOTAL SCORE: 10847 Bonus ------- High Alert Combat Kills 170 Follower Combat Kills 813 Aligned with FarCom 300 Destroyed Z-Imprinter 1000 Friendly Fire -387 Cogmind --------- Core Integrity 0/700 Matter 55/300 Energy 72/100 System Corruption 0% Temperature Cool (9) Movement Walking (150) Ox1 Location -6/Proximity Caves Parts ------- > --- POWER (1) -------- (None) > --- PROPULSION (2) --- Advanced Myomer Leg Advanced Myomer Leg > --- UTILITY (8) ------ Experimental Heat Sink Improved Cooling System Large Storage Unit Large Storage Unit High-capacity Storage Unit Experimental Sensor Array Experimental Targeting Computer Experimental Core Analyzer > --- WEAPON (2) ------- Heavy Missile Launcher Impact Mace > --- INVENTORY (24) --- Micro Nuclear Core Zionite Light DM Reactor Zionite Light DM Reactor Zionite Glidesys I Zionite Glidesys II Zionite Biocell Zionite Biocell Experimental Armor Integrity Analyzer Phase Shifter Zionite Weapon Casing Hardened Light Armor Plating Damper Plating Thief Drone Bay (1/3) Hacking Drone Bay (1/1) 8R-AWN's Boregun Peak State ------------ > --- POWER ------------ Reinforced Fission Core > --- PROPULSION ------- Advanced Myomer Leg Advanced Myomer Leg > --- UTILITY ---------- Improved Cooling System Experimental Sensor Array Experimental Targeting Computer Advanced Weapon Cycler Improved Medium Armor Plating Damper Plating > --- WEAPON ----------- 8R-AWN's Boregun 8R-AWN's Boregun > --- INVENTORY -------- Armored Huge Wheel Enhanced Autogun [Rating: 89] Favorites ----------- Power Micro Nuclear Core Engine Cooled Ion Engine Power Core Micro Nuclear Core Propulsion Light Treads Treads Light Treads Leg Advanced Myomer Leg Wheel Armored Huge Wheel Utility Large Storage Unit Device Improved Cooling System Storage Large Storage Unit Processor Experimental Targeting Computer Protection Hardened Light Armor Plating Weapon Enhanced Autogun Energy Gun Medium Laser Energy Cannon YOLO Cannon Ballistic Gun Enhanced Autogun Launcher Heavy Missile Launcher Impact Weapon Impact Mace Special Melee Weapon Datajack Build | -11 -10 -10 -9 -9 -9 -8 -8 -7 -7 -7 -7 -7 -7 -7 -6 ------- Run | Scr Mat Min Mat Min Exi Min Mat Fac Was Fac Low Low Zio Dee Pro Slots Evolved 6 | . . . 2 . . . 2 2 . . . . . . . Power . | . . . . . . . . . . . . . . . . Propulsion . | . . . . . . . . . . . . . . . . Utility 6 | . . . 2 . . . 2 2 . . . . . . . Weapon . | . . . . . . . . . . . . . . . . Parts Attached 152 | . 7 4 13 4 17 5 29 7 7 3 5 9 18 21 3 Power 10 | . 1 1 2 . . . 3 2 . . . . 1 . . Engine 6 | . 1 1 2 . . . 2 . . . . . . . . Core 4 | . . . . . . . 1 2 . . . . 1 . . Reactor . | . . . . . . . . . . . . . . . . Propulsion 28 | . 1 2 2 . 4 . 8 . 2 . . 2 3 4 . Treads 10 | . . 2 2 . 1 . . . 1 . . 2 . 2 . Leg 17 | . 1 . . . 3 . 8 . 1 . . . 2 2 . Wheel 1 | . . . . . . . . . . . . . 1 . . Hover . | . . . . . . . . . . . . . . . . Flight . | . . . . . . . . . . . . . . . . Utility 54 | . 2 . 3 2 4 1 6 4 3 1 5 5 9 8 1 Device 21 | . . . 1 1 3 1 4 . 1 1 3 2 1 2 1 Storage 9 | . 2 . . . . . . 1 1 . . . 3 2 . Processor 6 | . . . . . . . 1 1 . . . . 3 1 . Hackware . | . . . . . . . . . . . . . . . . Protection 18 | . . . 2 1 1 . 1 2 1 . 2 3 2 3 . Artifact . | . . . . . . . . . . . . . . . . Weapon 60 | . 3 1 6 2 9 4 12 1 2 2 . 2 5 9 2 Energy Gun 9 | . 1 . 1 . . 2 3 1 . . . . . . 1 Energy Cannon 1 | . . . . . 1 . . . . . . . . . . Ballistic Gun 33 | . 2 1 3 1 6 1 6 . 2 1 . 1 3 6 . Ballistic Cannon . | . . . . . . . . . . . . . . . . Launcher 11 | . . . 2 1 1 1 3 . . . . 1 . 1 1 Special Weapon . | . . . . . . . . . . . . . . . . Impact Weapon 5 | . . . . . . . . . . 1 . . 2 2 . Slashing Weapon . | . . . . . . . . . . . . . . . . Piercing Weapon . | . . . . . . . . . . . . . . . . Special Melee Weapon 1 | . . . . . 1 . . . . . . . . . . Unidentified Prototypes 14 | . . . 2 1 1 . 3 . . 1 . . 3 2 1 Parts Lost 25 | . . 2 2 . 2 . 7 1 . . . . . 9 2 Power 5 | . . . . . . . 3 1 . . . . . . 1 Propulsion 6 | . . 1 . . 2 . . . . . . . . 3 . Utility 4 | . . . 1 . . . 1 . . . . . . 2 . Weapon 10 | . . 1 1 . . . 3 . . . . . . 4 1 Highest Loss Streak 7 | . . 1 1 . 2 . 4 1 . . . . . 7 2 Average Slot Usage (%) 96 | . 92 100 88 100 99 93 93 96 94 92 92 94 97 95 99 Engine 4 | . 14 14 11 11 11 11 4 3 . . . . . . . Core 4 | . . . . . . . 3 2 7 7 7 7 7 7 6 Treads 9 | . . 26 22 22 12 . . . 5 7 7 9 9 . . Leg 6 | . 28 1 . . 9 22 18 15 4 . . . 2 10 15 Device 13 | . . . 3 11 16 16 23 17 7 7 12 12 15 13 22 Storage 22 | . 21 28 22 22 22 22 18 22 23 23 23 23 22 21 23 Processor 9 | . . . . . . . 7 9 15 15 15 15 14 16 15 Protection 6 | . . . 8 11 5 . . 8 15 14 9 9 7 6 . Energy Gun 1 | . 14 11 1 . . 9 7 13 . . . . . . . Ballistic Gun 13 | . 14 16 16 21 18 11 9 . 14 15 15 14 12 7 . Impact Weapon 1 | . . . . . . . . . . . . . 2 5 7 Naked Turns . | . . . . . . . . . . . . . . . . Heaviest Build 109 | 13 41 41 47 46 63 51 52 81 85 85 90 90 107 109 98 Greatest Support 70 | 20 20 40 40 40 60 60 60 45 70 70 70 70 60 60 60 Greatest Overweight (x) 4 | . 2 1 1 1 1 . 1 1 4 1 1 2 3 3 1 Average Overweight (x) 1 | . . . . 1 . . . 1 . 1 1 1 1 1 1 Largest Inventory Capacity 24 | . 16 16 16 16 16 16 16 22 24 24 24 24 24 24 24 Average Capacity 20 | . 11 16 16 16 16 16 16 21 22 24 24 24 23 22 24 Most Carried 24 | . 6 11 16 15 16 16 16 21 24 24 24 24 24 24 19 Average Carried 18 | . 5 7 13 14 15 15 15 18 21 23 23 23 23 18 18 Final Capacity 24 | 6 16 16 16 16 16 16 16 22 24 24 24 24 24 24 24 Final Carried 24 | 6 6 11 14 15 15 16 16 20 24 24 24 24 24 19 17 Class Distribution -------------------- 57% | Hauler-Mutant 22% | Mutant 20% | Scavenger-Mutant Dominant Class ---------------- Mutant | -10/Materials Mutant | -10/Mines Mutant | -9/Materials Scavenger-Mutant | -9/Mines Scavenger-Mutant | -9/Exiles Mutant | -8/Mines Scavenger-Mutant | -8/Materials Hauler-Mutant | -7/Factory Hauler-Mutant | -7/Waste Hauler-Mutant | -7/Factory Hauler-Mutant | -7/Lower Caves Hauler-Mutant | -7/Lower Caves Hauler-Mutant | -7/Zion Hauler-Mutant | -7/Deep Caves Hauler-Mutant | -6/Proximity Caves Resources | -11 -10 -10 -9 -9 -9 -8 -8 -7 -7 -7 -7 -7 -7 -7 -6 ----------- Run | Scr Mat Min Mat Min Exi Min Mat Fac Was Fac Low Low Zio Dee Pro Matter Collected 3006 | 175 . 188 353 18 232 204 709 107 208 30 119 256 49 313 45 Remotely . | . . . . . . . . . . . . . . . . Salvage Created 4526 | . . 246 732 31 156 213 1498 214 549 30 117 382 . 313 45 Parts 211 | . . 21 44 9 1 12 70 7 3 1 5 19 . 19 . Haulers Intercepted 7 | . . . 3 . . . 3 1 . . . . . . . Recyclers Shooed . | . . . . . . . . . . . . . . . . Parts Field Recycled . | . . . . . . . . . . . . . . . . Retrieved Matter . | . . . . . . . . . . . . . . . . Parts Self-Destructed 34 | . . . . . . . . . . . 9 19 6 . . Prevented 3 | . . . . . . . . . . . 3 . . . . Kills | -11 -10 -10 -9 -9 -9 -8 -8 -7 -7 -7 -7 -7 -7 -7 -6 ------- Run | Scr Mat Min Mat Min Exi Min Mat Fac Was Fac Low Low Zio Dee Pro Combat Hostiles Destroyed 82 | . . 10 14 5 4 5 25 1 . 1 2 8 . 6 1 Melee 1 | . . . . . . . . . . . . . . 1 . Guns 45 | . . 10 5 1 1 3 12 1 . 1 2 5 . 4 . AOE 34 | . . . 9 4 3 2 13 . . . . 3 . . . Classes Destroyed 16 | . . 2 5 . 2 . 2 1 . . . 2 . 2 . Worker 5 | . . . 1 . . . 4 . . . . . . . . Builder 1 | . . . . . . . . 1 . . . . . . . Hauler 7 | . . . 3 . . . 3 1 . . . . . . . Recycler 6 | . . . 2 . . . 3 1 . . . . . . . Drone 1 | . . . . . 1 . . . . . . . . . . Watcher 2 | . . . . . . . 2 . . . . . . . . Swarmer 19 | . . 6 3 5 . . 4 . . 1 . . . . . Grunt 37 | . . 4 7 . . 4 16 . . . 1 5 . . . Brawler 3 | . . . 1 . . 1 . . . . . 1 . . . Duelist 2 | . . . . . . . . . . . . 1 . . 1 Sentry 9 | . . . 3 . . . 4 1 . . 1 . . . . Hunter 1 | . . . . . . . 1 . . . . . . . . Behemoth 1 | . . . . . . . . . . . . 1 . . . Z-Technician 4 | . . . . . . . . . . . . . . 4 . Z-Light 2 | . . . . . . . . . . . . . . 2 . Assembled 6 | . . . . . 3 . . . . . . . . 3 . Best Kill Streak 8 | . . 3 5 4 3 3 8 2 . 1 2 4 . 4 1 Combat Bots Only 5 | . . 3 5 4 3 3 5 1 . 1 2 4 . 2 1 Max Kills in Single Turn 3 | . . 1 3 3 2 1 3 1 . 1 1 1 . 1 1 Gunslinging . | . . . . . . . . . . . . . . . . Exploded 3 | . . . 3 3 1 1 3 . . . . 1 . . . Melee 1 | . . . . . . . . . . . . . . 1 . Uniques/NPCs Destroyed 2 | . . . . . 1 . . . . . . . . 1 . 8R-AWN (-9/Exiles) Z-Imprinter (-7/Deep Caves) Combat | -11 -10 -10 -9 -9 -9 -8 -8 -7 -7 -7 -7 -7 -7 -7 -6 -------- Run | Scr Mat Min Mat Min Exi Min Mat Fac Was Fac Low Low Zio Dee Pro Damage Taken 8989 | . 18 449 601 119 441 436 1347 263 62 146 216 591 . 3723 577 Core 1325 | . . 84 129 10 20 86 282 25 4 . 21 129 . 431 104 Absorbed by Shields . | . . . . . . . . . . . . . . . . Core Remaining (%) 63 | 100 . 66 . . . 38 48 . . . . . . . . Volleys Fired 315 | . 1 26 49 4 32 19 76 11 23 2 8 25 . 36 3 Largest 2 | . 1 2 2 2 2 2 2 2 2 2 2 2 . 2 1 Hottest 113 | . 50 70 70 43 100 88 75 113 50 50 50 50 . 60 73 Shots Fired 569 | . 1 52 91 6 57 35 137 20 46 4 16 46 . 55 3 Gun 530 | . 1 52 83 4 50 33 124 19 46 4 16 42 . 54 2 Cannon 2 | . . . . . 2 . . . . . . . . . . Launcher 37 | . . . 8 2 5 2 13 1 . . . 4 . 1 1 Special . | . . . . . . . . . . . . . . . . Kinetic 413 | . . 33 77 4 50 19 68 . 46 4 16 42 . 54 . Thermal 49 | . 1 19 6 . 2 10 . 9 . . . . . . 2 Explosive 37 | . . . 8 2 5 2 13 1 . . . 4 . 1 1 Electromagnetic 70 | . . . . . . 4 56 10 . . . . . . . Robot Hit Streak 24 | . . 5 22 2 21 8 24 18 19 5 12 15 . 5 2 Robot Miss Streak 7 | . . 2 2 1 3 1 4 2 1 1 1 1 . 7 . Penetration Max . | . . . . . . . . . . . . . . . . Secondary Targets 7 | . . 1 1 . . 1 2 . . . . 2 . . . Max Gunslinging Chain 1 | . . 1 1 . . 1 1 . . . . 1 . . . Shots Hit Robots 442 | . . 33 66 2 53 26 87 19 43 2 13 38 . 56 4 Core Hits 239 | . . 17 37 5 27 14 68 9 8 2 7 23 . 21 1 Critical Hits 9 | . . . . . 2 . 3 . 1 . . . . 3 . Critical Kills 4 | . . . . . . . 2 . . . . . . 2 . Critical Parts Destroyed 1 | . . . . . . . 1 . . . . . . . . Melee Attacks 90 | . . . . . 6 . . . . . . . 34 45 5 Impact 84 | . . . . . . . . . . . . . 34 45 5 Slashing . | . . . . . . . . . . . . . . . . Piercing . | . . . . . . . . . . . . . . . . Sneak Attacks 10 | . . . . . 6 . . . . . . . . 4 . Combat Hostiles . | . . . . . . . . . . . . . . . . Follow-up Attacks . | . . . . . . . . . . . . . . . . Damage Inflicted 10680 | . . 421 1364 294 952 610 2590 427 750 63 204 1016 . 1858 131 Guns 6013 | . . 421 720 8 568 404 1406 318 750 51 204 575 . 520 68 Cannons 7 | . . . . . 7 . . . . . . . . . . Explosions 3257 | . . . 644 286 377 204 1184 109 . . . 441 . . 12 Melee 1389 | . . . . . . . . . . . . . . 1338 51 Ramming 14 | . . . . . . 2 . . . 12 . . . . . Kinetic 4367 | . . 248 672 8 568 212 559 . 750 51 204 575 . 520 . Thermal 1095 | . . 173 48 149 39 140 315 163 . . . . . . 68 Explosive 2733 | . . . 644 137 345 204 869 81 . . . 441 . . 12 Electromagnetic 1082 | . . . . . . 52 847 183 . . . . . . . Impact 1389 | . . . . . . . . . . . . . . 1338 51 Slashing . | . . . . . . . . . . . . . . . . Piercing . | . . . . . . . . . . . . . . . . Highest Corruption . | . . . . . . . . . . . . . . . . Average Corruption . | . . . . . . . . . . . . . . . . Corruption Purged . | . . . . . . . . . . . . . . . . Overload Shots . | . . . . . . . . . . . . . . . . Overflow Damage 272 | . . . 10 37 5 . 6 . . . . 1 . 200 13 Projectiles . | . . . . . . . . . . . . . . . . Explosions 59 | . . . 10 37 5 . 6 . . . . 1 . . . Melee 213 | . . . . . . . . . . . . . . 200 13 Knockbacks 2 | . . . . . . . . . . . . . . 2 . Impact 2 | . . . . . . . . . . . . . . 2 . Kinetic . | . . . . . . . . . . . . . . . . Secondary . | . . . . . . . . . . . . . . . . Self-Inflicted Damage 579 | . . . 48 55 25 64 174 44 . . . 95 . 13 61 Shots 15 | . . . 1 2 1 2 2 2 . . . 3 . 1 1 Rammed 3 | . . . . . . . . . . 2 . . . 1 . Targets Rammed 4 | . . . . . . 1 . . . 2 . . . 1 . Kicked 1 | . . . . . . 1 . . . . . . . . . Crushed . | . . . . . . . . . . . . . . . . Highest Temperature 357 | . 10 192 54 . . 357 16 . . . . . 309 15 . Average Temperature 80 | . 7 68 10 . . 185 16 . . . . . 170 7 . Received Heat Transfer 2434 | . 9 162 228 . . 162 432 60 . . 75 186 . 994 126 Effects 1 | . . . . . . 1 . . . . . . . . . Shutdowns 1 | . . . . . . 1 . . . . . . . . . Siege Activations . | . . . . . . . . . . . . . . . . Robots Corrupted . | . . . . . . . . . . . . . . . . Combat Hostiles . | . . . . . . . . . . . . . . . . Parts Fried 6 | . . . . . . . 2 2 . . . . . 2 . Impact Corruptions 16 | . . . . . . . . . . . . . . 15 1 Robots Melted . | . . . . . . . . . . . . . . . . Combat Hostiles . | . . . . . . . . . . . . . . . . Parts Melted 4 | . . 1 . . . 2 . . . . . . . 1 . Heat Transferred 2089 | . . 518 148 150 120 333 400 346 . . . . . . 74 Parts Sabotaged . | . . . . . . . . . . . . . . . . Parts Stolen . | . . . . . . . . . . . . . . . . Parts Stripped . | . . . . . . . . . . . . . . . . Power Chain Reactions 5 | . . . . . . . 4 1 . . . . . . . Missiles Intercepted . | . . . . . . . . . . . . . . . . Alert | -11 -10 -10 -9 -9 -9 -8 -8 -7 -7 -7 -7 -7 -7 -7 -6 ------- Run | Scr Mat Min Mat Min Exi Min Mat Fac Was Fac Low Low Zio Dee Pro Peak Influence 862 | . 23 198 342 234 . 148 670 371 129 862 . . . . . Initial 304 | . . 8 27 94 . . 57 304 129 . . . . . . Average 275 | . 2 88 188 225 . 114 417 341 92 591 . . . . . Maximum Alert Level 3 | . . . 1 1 . . 2 1 . 3 . . . . . Low Security (%) 46 | . 100 100 60 1 . 100 8 . 100 10 . . . . . Level 1 26 | . . . 39 98 . . 31 100 . 1 . . . . . Level 2 21 | . . . . . . . 60 . . 51 . . . . . Level 3 5 | . . . . . . . . . . 36 . . . . . Level 4 . | . . . . . . . . . . . . . . . . Level 5 . | . . . . . . . . . . . . . . . . High Security . | . . . . . . . . . . . . . . . . Max Security . | . . . . . . . . . . . . . . . . Squads Dispatched 14 | . . . . . . . 2 2 . 10 . . . . . Investigation 2 | . . . . . . . 1 1 . . . . . . . Extermination 1 | . . . . . . . . 1 . . . . . . . Reinforcement 5 | . . . . . . . 1 . . 4 . . . . . Assault 1 | . . . . . . . . . . 1 . . . . . Garrison 5 | . . . . . . . . . . 5 . . . . . Intercept . | . . . . . . . . . . . . . . . . Construction Impeded 3 | . . . . . . . . . . 3 . . . . . Haulers Reinforced 1 | . . . . . . . . . . 1 . . . . . Stealth | -11 -10 -10 -9 -9 -9 -8 -8 -7 -7 -7 -7 -7 -7 -7 -6 --------- Run | Scr Mat Min Mat Min Exi Min Mat Fac Was Fac Low Low Zio Dee Pro Distress Signals 7 | . . . 4 . . . 2 . . 1 . . . . . Communications Jammed . | . . . . . . . . . . . . . . . . Distress Signals . | . . . . . . . . . . . . . . . . Times Spotted 131 | . 2 12 20 7 4 6 35 2 1 19 4 8 1 6 4 Peak Tracking Total 9 | . 2 3 4 4 9 3 5 2 1 4 3 4 1 3 4 Tactical Retreats 9 | . . 1 . . 1 1 3 . . 1 2 . . . . Traps | -11 -10 -10 -9 -9 -9 -8 -8 -7 -7 -7 -7 -7 -7 -7 -6 ------- Run | Scr Mat Min Mat Min Exi Min Mat Fac Was Fac Low Low Zio Dee Pro Traps Triggered 4 | . 2 . . . . . . 2 . . . . . . . Indirectly . | . . . . . . . . . . . . . . . . Trap Hack Attempts . | . . . . . . . . . . . . . . . . Triggered . | . . . . . . . . . . . . . . . . Disarmed . | . . . . . . . . . . . . . . . . Reprogrammed . | . . . . . . . . . . . . . . . . Reused . | . . . . . . . . . . . . . . . . Traps Extracted . | . . . . . . . . . . . . . . . . Installed . | . . . . . . . . . . . . . . . . Triggered 2 | . . . . . . . . . . . 2 . . . . Power Sources Rigged 1 | . . . . . 1 . . . . . . . . . . Exploded 1 | . . . . . 1 . . . . . . . . . . Machines | -11 -10 -10 -9 -9 -9 -8 -8 -7 -7 -7 -7 -7 -7 -7 -6 ---------- Run | Scr Mat Min Mat Min Exi Min Mat Fac Was Fac Low Low Zio Dee Pro Machines Disabled 20 | . . . 1 2 6 . 5 1 . 4 . . . 1 . Max in Single Turn 3 | . . . 1 2 1 . 3 1 . . . . . 1 . Machines Sabotaged . | . . . . . . . . . . . . . . . . Garrisons Compromised . | . . . . . . . . . . . . . . . . Overloaded Fab Kills . | . . . . . . . . . . . . . . . . Fab Network Shutdowns . | . . . . . . . . . . . . . . . . Hacking | -11 -10 -10 -9 -9 -9 -8 -8 -7 -7 -7 -7 -7 -7 -7 -6 --------- Run | Scr Mat Min Mat Min Exi Min Mat Fac Was Fac Low Low Zio Dee Pro Machines Accessed 14 | . 2 1 2 . 2 . 5 . . 1 . . 1 . . Terminals 9 | . 2 . 2 . . . 4 . . 1 . . . . . Fabricators . | . . . . . . . . . . . . . . . . Repair Stations . | . . . . . . . . . . . . . . . . Recycling Units 1 | . . . . . . . 1 . . . . . . . . Scanalyzers . | . . . . . . . . . . . . . . . . Garrison Access . | . . . . . . . . . . . . . . . . Total Hacks 38 | . 7 1 5 . 2 . 15 . . 3 . . 5 . . Successful 18 | . 4 1 1 . 2 . 5 . . . . . 5 . . Failed 20 | . 3 . 4 . . . 10 . . 3 . . . . . Catastrophic 2 | . 1 . . . . . 1 . . . . . . . . Database Lockouts . | . . . . . . . . . . . . . . . . Manual 31 | . 7 . 5 . 1 . 15 . . 3 . . . . . Terminals 29 | . 7 . 5 . . . 14 . . 3 . . . . . Fabricators . | . . . . . . . . . . . . . . . . Repair Stations . | . . . . . . . . . . . . . . . . Recycling Units 1 | . . . . . . . 1 . . . . . . . . Scanalyzers . | . . . . . . . . . . . . . . . . Garrison Access . | . . . . . . . . . . . . . . . . Terminal Hacks 10 | . 1 1 . . 2 . 1 . . . . . 5 . . Record 1 | . . . . . 1 . . . . . . . . . . Part Schematic 5 | . . . . . . . . . . . . . 5 . . Open Door 1 | . . 1 . . . . . . . . . . . . . Branch Access Points 2 | . 1 . . . . . 1 . . . . . . . . EX-Prototype ID Bank 1 | . . . . . 1 . . . . . . . . . . Fabricator Hacks . | . . . . . . . . . . . . . . . . Repair Station Hacks . | . . . . . . . . . . . . . . . . Recycling Unit Hacks . | . . . . . . . . . . . . . . . . Scanalyzer . | . . . . . . . . . . . . . . . . Garrison Access Hacks . | . . . . . . . . . . . . . . . . Unauthorized Hacks 8 | . 3 . 1 . . . 4 . . . . . . . . Terminals 7 | . 3 . 1 . . . 3 . . . . . . . . Track 4 | . 2 . 1 . . . 1 . . . . . . . . Botnet 3 | . 1 . . . . . 2 . . . . . . . . Fabricators . | . . . . . . . . . . . . . . . . Repair Stations . | . . . . . . . . . . . . . . . . Recycling Units 1 | . . . . . . . 1 . . . . . . . . Tunnel 1 | . . . . . . . 1 . . . . . . . . Scanalyzers . | . . . . . . . . . . . . . . . . Garrison Access . | . . . . . . . . . . . . . . . . Data Cores Recovered . | . . . . . . . . . . . . . . . . Used . | . . . . . . . . . . . . . . . . Hacking Detections 9 | . 2 . 2 . . . 4 . . 1 . . . . . Full Trace Events . | . . . . . . . . . . . . . . . . Feedback Events . | . . . . . . . . . . . . . . . . Feedback Blocked . | . . . . . . . . . . . . . . . . Robot Schematics Acquired . | . . . . . . . . . . . . . . . . Robots Built . | . . . . . . . . . . . . . . . . Matter . | . . . . . . . . . . . . . . . . Time . | . . . . . . . . . . . . . . . . Total Robot Build Rating . | . . . . . . . . . . . . . . . . Part Schematics Acquired 5 | . . . . . . . . . . . . . 5 . . Parts Built . | . . . . . . . . . . . . . . . . Matter . | . . . . . . . . . . . . . . . . Time . | . . . . . . . . . . . . . . . . Total Part Build Rating . | . . . . . . . . . . . . . . . . Parts Repaired . | . . . . . . . . . . . . . . . . Time . | . . . . . . . . . . . . . . . . Parts Recycled . | . . . . . . . . . . . . . . . . Recycled Matter . | . . . . . . . . . . . . . . . . Retrieved Matter . | . . . . . . . . . . . . . . . . Retrieved Components . | . . . . . . . . . . . . . . . . Parts Scanalyzed . | . . . . . . . . . . . . . . . . Part Schematics Acquired . | . . . . . . . . . . . . . . . . Parts Damaged . | . . . . . . . . . . . . . . . . Bothacking | -11 -10 -10 -9 -9 -9 -8 -8 -7 -7 -7 -7 -7 -7 -7 -6 ------------ Run | Scr Mat Min Mat Min Exi Min Mat Fac Was Fac Low Low Zio Dee Pro Used RIF Installer . | . . . . . . . . . . . . . . . . Robots Hacked 6 | . . . . . 6 . . . . . . . . . . Non-combat 3 | . . . . . 3 . . . . . . . . . . Combat 3 | . . . . . 3 . . . . . . . . . . Robot Hacks Applied 6 | . . . . . 6 . . . . . . . . . . parse_system 6 | . . . . . 6 . . . . . . . . . . Relay Couplers Released . | . . . . . . . . . . . . . . . . Robots Rewired . | . . . . . . . . . . . . . . . . Allies Hacked . | . . . . . . . . . . . . . . . . Hacks Repelled . | . . . . . . . . . . . . . . . . Allies | -11 -10 -10 -9 -9 -9 -8 -8 -7 -7 -7 -7 -7 -7 -7 -6 -------- Run | Scr Mat Min Mat Min Exi Min Mat Fac Was Fac Low Low Zio Dee Pro Total Allies 23 | . . . . 3 . . . . 20 . . . . . . Largest Group 20 | . . . . 3 2 . . . 20 14 . . . . . Highest-Rated Group 526 | . . . . 78 47 . . . 526 391 . . . . . Highest-Rated Ally 35 | . . . . 31 31 . . . 35 35 . . . . . Total Orders 12 | . . . . . 12 . . . . . . . . . . STAY 3 | . . . . . 3 . . . . . . . . . . FOLLOW 1 | . . . . . 1 . . . . . . . . . . RETURN 8 | . . . . . 8 . . . . . . . . . . Ally Attacks 212 | . . . . . 79 . . . 8 125 . . . . . Total Damage 5606 | . . . . . 367 . . . 1246 3993 . . . . . Kills 46 | . . . . . . . . . 6 40 . . . . . Allies Corrupted 1 | . . . . . . . . . . 1 . . . . . Allies Melted 1 | . . . . . . . . . . 1 . . . . . Intel | -11 -10 -10 -9 -9 -9 -8 -8 -7 -7 -7 -7 -7 -7 -7 -6 ------- Run | Scr Mat Min Mat Min Exi Min Mat Fac Was Fac Low Low Zio Dee Pro Robot Analysis Total . | . . . . . . . . . . . . . . . . Derelict Logs Recovered 7 | . . 1 . 1 . . . . . . 1 1 2 . 1 Drone Launches 21 | . . . . . 21 . . . . . . . . . . Drone Recoveries 19 | . . . . . 19 . . . . . . . . . . Exploration | -11 -10 -10 -9 -9 -9 -8 -8 -7 -7 -7 -7 -7 -7 -7 -6 ------------- Run | Scr Mat Min Mat Min Exi Min Mat Fac Was Fac Low Low Zio Dee Pro Turns Passed 13760 | . 188 726 568 372 2603 154 1025 293 533 676 972 1333 2791 1212 314 Spaces Moved 7059 | 1 117 358 225 195 1095 85 510 163 290 366 524 682 1581 673 194 Core . | . . . . . . . . . . . . . . . . Treads 4328 | . . 358 225 195 771 . . . 216 366 524 682 988 3 . Legs 2212 | 1 117 . . . 324 85 510 163 74 . . . 248 496 194 Wheels 519 | . . . . . . . . . . . . . 345 174 . Hover . | . . . . . . . . . . . . . . . . Flight . | . . . . . . . . . . . . . . . . Fastest Speed 120 | 120 120 160 160 180 120 120 120 150 150 180 180 180 120 130 150 Average Speed 166 | 120 147 176 177 180 169 120 146 150 159 180 180 185 167 145 150 Slowest Speed 240 | 120 180 180 180 180 180 120 150 150 240 180 180 200 185 210 150 Overloaded Moves . | . . . . . . . . . . . . . . . . Propulsion Burnouts . | . . . . . . . . . . . . . . . . Robots Hopped . | . . . . . . . . . . . . . . . . Cave-ins Triggered . | . . . . . . . . . . . . . . . . Exploration Rate (%) 49 | 2 33 91 26 49 89 10 48 4 94 17 71 78 82 76 16 Regions Visited 15 Branch Regions 9 Pre-discovered Areas 5 | . . . . 1 1 . 1 . . . 1 . 1 . . Known Exits Taken 1 | . 1 . . . . . . . . . . . . . . Unknown Exits Taken 12 | 1 . 1 1 1 1 1 1 . . 1 1 1 1 1 . Scrap Searched 13 | . . 1 . 1 . . . . . . 2 5 4 . . Spaces Dug 13 | . . . . . . . . . . . . 6 3 4 . Terrain Destroyed 276 | . . . 52 28 38 13 93 . . . . 17 3 24 8 Melee 5 | . . . . . . . . . . . . . 3 2 . Projectile 8 | . . . . . 1 . 2 . . . . . . 5 . AOE 263 | . . . 52 28 37 13 91 . . . . 17 . 17 8 Terrain Rammed . | . . . . . . . . . . . . . . . . Walls Destroyed . | . . . . . . . . . . . . . . . . Machines Disabled . | . . . . . . . . . . . . . . . . Actions | -11 -10 -10 -9 -9 -9 -8 -8 -7 -7 -7 -7 -7 -7 -7 -6 --------- Run | Scr Mat Min Mat Min Exi Min Mat Fac Was Fac Low Low Zio Dee Pro Total 8471 | . 130 401 311 209 1789 115 663 192 336 381 542 719 1679 798 206 Wait 653 | . . 3 1 6 608 1 21 2 4 . 4 . . 3 . Move 7045 | . 116 357 224 194 1094 84 509 163 289 365 523 681 1580 672 194 Hop . | . . . . . . . . . . . . . . . . Pick Up 114 | . 3 9 14 1 15 . 14 7 4 3 1 1 27 15 . Fast Attach 32 | . 6 . 3 . . 2 6 1 1 . 1 2 9 1 . Attach 48 | . . 3 4 . 7 . 8 4 . . 1 . 6 14 1 Detach 6 | . . . . . . 3 . 1 1 . . . . 1 . Swap 72 | . 1 1 6 4 10 3 15 2 6 3 3 7 3 6 2 Drop 89 | . 3 2 10 . 16 2 14 1 8 4 1 3 20 4 1 Fire 315 | . 1 26 49 4 32 19 76 11 23 2 8 25 . 36 3 Melee 90 | . . . . . 6 . . . . . . . 34 45 5 Ram 1 | . . . . . . . . . . . . . . 1 . Kick 1 | . . . . . . 1 . . . . . . . . . Crush 2 | . . . . . . . . . . 2 . . . . . Escape Stasis 2 | . . . . . . . . . . 2 . . . . . Rewire . | . . . . . . . . . . . . . . . . Trap 1 | . . . . . 1 . . . . . . . . . . Miscellaneous . | . . . . . . . . . . . . . . . . Route ------- -11/Scrapyard -10/Materials (discovered 2 exits: *Mat / *Min) -10/Mines (discovered 2 exits: *Mat x2) -9/Materials -9/Mines (discovered 3 exits: *Mat / *Exi / *Zio) -9/Exiles -8/Mines -8/Materials -7/Factory -7/Waste -7/Factory -7/Lower Caves -7/Lower Caves (discovered 2 exits: [*Fac] / *Zio) -7/Zion (discovered 2 exits: [*Dee] / [*Pro]) -7/Deep Caves -6/Proximity Caves History --------- Turn | Location | Event 1 | -11/Scrapyard | Discovered new exit (range 0) 1 | -11/Scrapyard | Entered Materials 139 | -10/Materials | Discovered new exit (range 15) 141 | -10/Materials | Identified exit to Mines 189 | -10/Materials | Entered Mines 318 | -10/Mines | Build established: Mutant 441 | -10/Mines | Found the Drone Emporium 449 | -10/Mines | Found Prototype Device 555 | -10/Mines | Discovered new exit (range 12) 723 | -10/Mines | Learned Materials non-interactive machine intel 802 | -10/Mines | Received a Rocket Launcher from a helpful Derelict 891 | -10/Mines | Discovered new exit (range 9) 915 | -10/Mines | Entered Materials 915 | -9/Materials | Evolved 2 slots: Utility x2 916 | -9/Materials | Loaded intel: 34 non-interactive machine locations 1171 | -9/Materials | Discovered new exit (range 15) 1483 | -9/Materials | Entered Mines 1512 | -9/Mines | Learned Materials trap positions 1517 | -9/Mines | A Derelict revealed a hidden shortcut to a safe place 1577 | -9/Mines | Found a damaged Exp. Sensor Array with a note attached 1580 | -9/Mines | Found Prototype Device 1581 | -9/Mines | Identified Exp. Sensor Array 1606 | -9/Mines | Discovered new exit (range 8) 1621 | -9/Mines | Escorted by a lone wolf Derelict 1641 | -9/Mines | Learned location of Storage (-9) 1642 | -9/Mines | Build established: Scavenger-Mutant 1680 | -9/Mines | Deemed a non-threat by the Exiles lab entrance 1680 | -9/Mines | Discovered new exit (range 5) 1855 | -9/Mines | Entered Exiles 1855 | -9/Exiles | Accompanied by 3 allies 1885 | -9/Exiles | Led the pair of lost Derelicts to a safe place 2053 | -9/Exiles | Met 8R-AWN 2081 | -9/Exiles | Met EX-HEX 2134 | -9/Exiles | Met EX-BIN 2198 | -9/Exiles | Met EX-DEC 2206 | -9/Exiles | Learned location of Zion (-7) 2439 | -9/Exiles | Aligned with FarCom system 2441 | -9/Exiles | Given EX-Vault access code 2482 | -9/Exiles | Opened EX-Vault 2493 | -9/Exiles | Found PSU Rigger 2500 | -9/Exiles | Found YOLO Cannon 2539 | -9/Exiles | Warned to stay clear of 0b10 Research branches 2834 | -9/Exiles | Visited The Gauntlet 3122 | -9/Exiles | Identified Thief Drone Bay 3153 | -9/Exiles | Attacked by the Exiles 3337 | -9/Exiles | Found AS-neutralizer No. 17b 3577 | -9/Exiles | Build established: Mutant 4335 | -9/Exiles | Found 8R-AWN's Boregun 4353 | -9/Exiles | Destroyed 8R-AWN 4366 | -9/Exiles | Found Exp. Targeting Computer 4424 | -9/Exiles | Found 8R-AWN's Boregun 4445 | -9/Exiles | Discovered new exit (range 14) 4458 | -9/Exiles | Entered Mines 4463 | -8/Mines | Core integrity fell below 50% 4564 | -8/Mines | Discovered new exit (range 9) 4612 | -8/Mines | Entered Materials 4612 | -8/Materials | Evolved 2 slots: Utility x2 4613 | -8/Materials | Loaded intel: 10 trap records 4736 | -8/Materials | Lost 4 parts (1p1u2w) 5136 | -8/Materials | Build established: Scavenger-Mutant 5430 | -8/Materials | Core integrity fell below 50% 5591 | -8/Materials | Discovered new exit (range 5) 5637 | -8/Materials | Entered Factory 5637 | -7/Factory | Evolved 2 slots: Utility x2 5930 | -7/Factory | Sucked down chute 5930 | -7/Factory | Entered Waste 5931 | -7/Waste | Joined by Warlord forces that had cleared the area 5963 | -7/Waste | Build established: Hauler-Mutant 5990 | -7/Waste | A Compactor rumbled back to life 5990 | -7/Waste | Spotted C-40 Crusher 5992 | -7/Waste | Allies destroyed C-40 Crusher 6066 | -7/Waste | Found Damper Plating 6349 | -7/Waste | Discovered new exit (range 12) 6420 | -7/Waste | Found Damper Plating 6463 | -7/Waste | Entered Factory 6463 | -7/Factory | Accompanied by 14 allies 6512 | -7/Factory | Garrison activated, responded to threat 6863 | -7/Factory | First assault squad dispatched 7126 | -7/Factory | Discovered new exit (range 6) 7139 | -7/Factory | Entered Lower Caves 7154 | -7/Lower Caves | Attracted the attention of an 0b10 checkpoint 7449 | -7/Lower Caves | Learned location of Extension (-6) 7938 | -7/Lower Caves | Discovered new exit (range 5) 8111 | -7/Lower Caves | Entered another Lower Caves area 8168 | -7/Lower Caves | Discovered new exit (range 4) 8582 | -7/Lower Caves | Spotted B-75 Beast 8601 | -7/Lower Caves | Destroyed B-75 Beast 8858 | -7/Lower Caves | Learned location of 1 exit from Factory 9131 | -7/Lower Caves | Discovered new exit (range 6) 9444 | -7/Lower Caves | Entered Zion 9478 | -7/Zion | Given the Hacking Drone Bay 9530 | -7/Zion | Discovered new exit (range 16) 10012 | -7/Zion | Learned 4 Factory zone layouts 10053 | -7/Zion | Learned Factory machine intel 10303 | -7/Zion | Found Prototype Processor 10303 | -7/Zion | Identified Exp. Armor Integrity Analyzer 10739 | -7/Zion | Learned location of Warlord (-5) 10971 | -7/Zion | Learned Factory emergency access door positions 11345 | -7/Zion | Visited the Megawrench Repair Shop 11345 | -7/Zion | Megawrench repaired 11 parts 11585 | -7/Zion | Found Prototype Processor 11585 | -7/Zion | Identified Exp. Core Analyzer 11595 | -7/Zion | Found Exp. Armor Integrity Analyzer 11837 | -7/Zion | Discovered new exit (range 4) 11839 | -7/Zion | Saw the warning signs outside the Deep Caves entrance 12059 | -7/Zion | Found Prototype Device 12235 | -7/Zion | Entered Deep Caves 12486 | -7/Deep Caves | Attacked by Z-Imprinter 12520 | -7/Deep Caves | Core integrity fell below 50% 12566 | -7/Deep Caves | Core integrity fell below 20% 12576 | -7/Deep Caves | Lost 7 parts (1n2u4w) 12633 | -7/Deep Caves | Destroyed Z-Imprinter 12653 | -7/Deep Caves | Identified Hacking Drone Bay 12667 | -7/Deep Caves | Found Prototype Protection 12668 | -7/Deep Caves | Identified Zio. Weapon Casing 12822 | -7/Deep Caves | Z-Facility disabled 13104 | -7/Deep Caves | Discovered new exit (range 6) 13447 | -7/Deep Caves | Entered Proximity Caves 13761 | -6/Proximity Caves | Destroyed by G-50 Soldier with Heavy Laser Last Messages --------------- 12822_ Z-Facility disabled. 13104_ EXIT=FOUND 13336_ HV Slug penetrates Wall. 13336_ HV Slug penetrates Earth. 13338_ HV Slug penetrates Wall. 13338_ HV Slug penetrates Earth. 13340_ HV Slug penetrates Wall. 13364_ The unstable cave ceiling collapses. LOCATION=UNKNOWN GOAL=ESCAPE 13501_ Acquired derelict log, extracted data. Data stored: Upper Caves entrances (x1). 13739_ Identified Zio. Laser-M. 13745_ Zio. Laser-M destroyed. 13751_ Dropped AS-neutralizer No. 17b. 13757_ Destroyed Microactuators. 13757_ L-41 Fighter system corrupted by crushing effect. 13758_ L-41 Fighter system terminally corrupted. 13759_ Rnf. Fission Core destroyed. 13760_ Acquired 45 matter. Map ----- +----------------------------------------------------+ | ???????????????## ##????????????????????????????? | | ??????????????## #????????????????????????????? | | ?????????????## ##???????????????????????????? | | ?????????????# #???????????????????????????? | | ?????????????# ###???????????????????????????? | | ?????????????## #?????????????????????????????? | | ??????????????## ##?????????###????????????????? | | ???????????????# ####???#### #????????????????? | | ???????????????# ##?## #????????????????? | | ??????????????## ### ###????????????????? | | ?????????????## ##??????????????????? | | ?????????????# ##???????????????????? | | ?????????????# #????????????????????? | | ?????????????## #????????????????????? | | ??????????????## ## #????????????????????? | | ???????????????###### ##????????????????????? | | ????????????????????# ##?????????????????????? | | ??????????????######## ##??????????????????????? | | ??????????????# #??????????????????????? | | ??????????????# #??????????????????????? | | ??????????????# """ #??????????????????????? | | ??????????????# "" #??????????????????????? | | ??????????????# """ ###????????????????????? | | ?????????????## "" # #????????????????????? | | ?????????????# """ ! #????????????????????? | | ?????????????# "" @ #????????????????????? | | ?????????????## " " #????????????????????? | | ??????????????# g #????????????????????? | | ??????????????# " gg ##???????????????????? | | ??????????????# ## " ##??????????????????? | | ??????????????# ## " #??????????????????? | | ??????????????# ## #####??????????????????? | | ??????????????# #??????????????????????? | | ??????????????##### #####??????????????????????? | | ??????????????????## ##????????????????????????? | | ???????????????????## ##???????????????????????? | | ????????????????????## ##??????????????????????? | | ?????####???????????## #??????????????????????? | | ?????# ############# ##?????????????????????? | | ?????# #?????????????????????? | | ?????# ### #?????????????????????? | | ?????# ### ########???????????????????? | | ?????# #??## #???????????????????? | | ?????# ###### #???????????????????? | | ???# ##### #???????????????????? | | ### #???# #???????????????????? | | #### ##???# #???????????????????? | | ### #??# ##????# #???????????????????? | | ##????# #??# ##?????# #???????????????????? | | ??????# #??# #####??????# #???????????????????? | +----------------------------------------------------+ Best States ------------- Heat Dissipation 87 Energy Generation 19 Energy Capacity 310 Matter Stores 300 Matter Capacity 300 Sight Range 16 Robot Scan Range 30 Terrain Scan Density 10 Armor Coverage 1425 Resistance: EM 90 Propulsion Shielding 66 Weapon Shielding 100 Weapon Cycling 25 Evasion (%) 40 Targeting Accuracy 12 Target Analysis 8 Core Analysis 15 Armor Integrity Analysis 90 Recoil Reduction 2 Item Schematics ----------------- Riot Gun | -7/Zion | Free Hvy. Riot Gun | -7/Zion | Free Battle Rifle | -7/Zion | Free Ripper | -7/Zion | Free Flamer | -7/Zion | Free Robot Schematics ------------------ None Fabricated ------------ Nothing Alien Tech Used ----------------- None Achievements -------------- None Challenges ------------ None Game ------ Seed IonAssembledSlayer Manual? 0 Play Time 01:11:45 Cumulative 157.0 hours Start 2020.12.18 @ 20:07:15 End 2020.12.18 @ 21:25:52 Sessions 1 Manual Loads 0 Difficulty Rogue Special Mode None Game No. 158 Rogue 151 Adventurer 0 Explorer 7 Win Type - Total 3 Types 0/0/3/0/0/0/0/0/0 Lore% 59 Gallery% 87 Achievement% 64 Wizard Run 0 Options --------- ASCII 0 Keyboard 0 Movement Mouse Keybinds 0 Fullscreen 1 Font 18/X11 Map View 76x50 Tactical HUD 1 Map Filters NONE Filters NONE Steam 1 RUN: abbfc9d6-289f-45c5-9128-2aea26eb2b93